bitfinex-derivatives/quotes_SOLF0:USTF0_20250808
["timestamp","ask_amount","ask_price","bid_price","bid_amount"]
[1754665982785,7.04322978,175.13,175.12,110.54]
[1754665982995,10.04503277,175.13,175.12,110.54]
[1754665983197,12.75232978,175.13,175.12,110.54]
[1754665983392,10.04604334,175.13,175.12,110.54]
[1754665983690,3.92322978,175.13,175.12,113.6]
[1754665983995,3.12,175.14,175.12,113.6]
[1754665984190,3.92322978,175.13,175.12,110.54]
[1754665984393,7.04322978,175.13,175.12,110.54]
[1754665984794,3.92322978,175.13,175.12,113.6]
[1754665985092,6.92573335,175.14,175.13,3.06]
[1754665985284,6.92573335,175.14,175.12,110.54]
[1754665985285,3.12,175.13,175.12,110.54]
[1754665985484,10.04548633,175.13,175.12,110.54]
[1754665985687,7.04322978,175.13,175.12,110.54]
[1754665986086,12.75232978,175.13,175.12,110.54]
[1754665986289,15.75458633,175.13,175.12,110.54]
[1754665987497,15.80458633,175.13,175.12,110.54]
[1754665987697,3.17,175.11,175.09,3.12]
[1754665987897,3.17,175.11,175.1,110.54]
[1754665988100,7.09099479,175.11,175.1,110.54]
[1754665988297,10.09325134,175.11,175.1,110.54]
[1754665988499,6.92325134,175.11,175.1,113.66]
[1754665988996,3.92099479,175.11,175.1,113.66]
[1754665989393,7.09099479,175.11,175.1,3.12]
[1754665989594,3.92099479,175.11,175.1,113.66]
[1754665989795,3.92099479,175.11,175.1,3.12]
[1754665989998,3.92099479,175.11,175.1,113.66]
[1754665990198,7.09099479,175.11,175.1,110.54]
[1754665990501,3.92099479,175.11,175.1,113.66]
[1754665991497,0.04061847,175.12,175.11,3.12]
[1754665991892,7.13161326,175.12,175.11,3.12]
[1754665992102,12.84121326,175.12,175.1,113.66]
[1754665992403,10.09189312,175.11,175.08,3.12]
[1754665992594,3.92099479,175.1,175.09,113.66]
[1754665992798,3.92099479,175.11,175.09,113.66]
[1754665993103,7.09099479,175.1,175.09,110.54]
[1754665993298,3.17,175.1,175.09,110.54]
[1754665993502,7.09099479,175.1,175.06,6.69009171]
[1754665993708,3.92099479,175.09,175.07,113.66]
[1754665993904,3.92099479,175.08,175.07,110.54]
[1754665994211,6.92206954,175.11,175.07,117.23009171]
[1754665994406,3.92099479,175.1,175.08,3.12]
[1754665994612,3.92099479,175.09,175.08,3.12]
[1754665995206,3.92099479,175.09,175.07,110.54]
[1754665995207,7.09099479,175.09,175.07,110.54]
[1754665995404,3.92099479,175.08,175.07,113.66]
[1754665995599,7.09099479,175.08,175.07,113.66]
[1754665995800,3.17,175.08,175.07,113.66]
[1754665996001,3.17,175.07,175.04,6.69009171]
[1754665996308,3.92099479,175.06,175.05,113.66]
[1754665996511,6.92408309,175.08,175.05,110.54]
[1754665996805,3.96209039,175.07,175.06,9.81009171]
[1754665997005,3.92099479,175.11,175.06,9.81009171]
[1754665997206,3.92099479,175.1,175.09,3.12]
[1754665997408,6.17311132,175.16,175.09,117.23009171]
[1754665997611,3.00311132,175.17,175.14,3.12]
[1754665997806,6.69009171,175.24,175.01,6.69009171]
[1754665997807,3.00311132,175.19,175.16,3.12]
[1754665998004,3.17,175.21,175.19,3.12]
[1754665998202,3.17,175.21,175.2,110.54]
[1754665998398,6.17311132,175.23,175.2,113.66]
[1754665998603,3.17,175.22,175.2,113.66]
[1754665998806,8.70911132,175.23,175.2,113.66]
[1754665998807,3.00311132,175.23,175.2,110.54]
[1754665998999,3.00311132,175.23,175.2,106.2574586]
[1754665999000,3.17,175.21,175.2,106.2574586]
[1754665999200,8.8765,175.21,175.2,106.2574586]
[1754665999410,11.88177967,175.21,175.2,106.2574586]
[1754665999804,8.8768,175.2,175.19,0.03635032]
[1754666000003,6.22068517,175.23,175.16,110.54]
[1754666000004,9.22596484,175.21,175.16,110.54]
[1754666000210,3.17,175.17,175.15,113.66]
[1754666001507,8.8781,175.16,175.15,110.54]
[1754666001718,3.17,175.16,175.09,3.12]
[1754666001910,3.17,175.14,175.1,110.54]
[1754666002103,3.00527967,175.14,175.1,110.54]
[1754666002308,3.17,175.12,175.1,113.66]
[1754666003018,3.00527967,175.12,175.11,3.12]
[1754666003313,0.03847521,175.14,175.13,3.12]
[1754666003714,0.03847521,175.14,175.1,110.52]
[1754666004016,8.91717521,175.14,175.11,3.12]
[1754666004413,3.20847521,175.14,175.12,110.54]
[1754666004613,0.03847521,175.14,175.13,3.12]
[1754666004915,0.03847521,175.14,175.13,9.81009171]
[1754666006020,3.00527967,175.18,175.14,3.12]
[1754666006227,3.00527967,175.19,175.18,3.12]
[1754666006426,3.00527967,175.21,175.19,3.12]
[1754666006627,3.00527967,175.22,175.21,3.12]
[1754666006921,3.17,175.21,175.19,3.12]
[1754666007126,3.17,175.2,175.18,110.52]
[1754666007424,3.17,175.2,175.18,113.68085297]
[1754666007820,3.17,175.2,175.18,3.16085297]
[1754666008121,6.17527967,175.2,175.18,3.16085297]
[1754666008322,6.17527967,175.19,175.18,113.68085297]
[1754666008521,3.17,175.19,175.18,113.68085297]
[1754666008725,6.17527967,175.19,175.18,3.16085297]
[1754666009021,3.00527967,175.2,175.18,110.56085297]
[1754666009228,3.17,175.21,175.19,3.12]
[1754666009423,3.01397124,175.2,175.19,3.12]
[1754666009723,3.17,175.21,175.18,6.73094468]
[1754666010028,3.01358463,175.2,175.19,113.62]
[1754666010322,3.01358463,175.2,175.19,3.12]
[1754666010524,6.18358463,175.2,175.18,6.73094468]
[1754666010721,11.92728517,175.21,175.19,3.12]
[1754666010919,3.01423757,175.2,175.19,113.62]
[1754666011719,3.01423757,175.2,175.19,120.31009171]
[1754666012120,3.01423757,175.22,175.19,120.31009171]
[1754666012316,3.01423757,175.21,175.2,3.12]
[1754666012822,6.18423757,175.21,175.2,3.12]
[1754666013323,3.01423757,175.21,175.2,3.12]
[1754666013518,6.18423757,175.21,175.19,117.19009171]
[1754666013714,9.38361491,175.25,175.18,0.04085297]
[1754666013715,8.8771,175.19,175.18,0.04085297]
[1754666013916,11.89133757,175.19,175.18,110.54085297]
[1754666014820,18.11202274,175.19,175.18,106.25803232]
[1754666015021,8.71423757,175.19,175.12,386.9]
[1754666015226,6.22487195,175.16,175.09,9.81009171]
[1754666015424,3.17,175.13,175.1,110.48]
[1754666015626,3.01423757,175.12,175.11,3.12]
[1754666015826,3.01423757,175.14,175.13,3.12]
[1754666016122,3.01423757,175.14,175.13,120.29009171]
[1754666016720,6.22487195,175.18,175.13,120.29009171]
[1754666016916,9.34487195,175.18,175.16,6.69009171]
[1754666017120,15.05227195,175.18,175.17,110.48]
[1754666017329,6.22487195,175.19,175.17,113.77]
[1754666017528,6.22487195,175.19,175.18,3.29]
[1754666017930,9.34487195,175.21,175.19,3.29]
[1754666018123,15.05147195,175.21,175.19,3.29]
[1754666018429,15.05147195,175.21,175.2,110.48]
[1754666018637,6.22487195,175.21,175.2,113.77]
[1754666018928,6.22487195,175.22,175.21,3.29]
[1754666019117,9.34487195,175.22,175.2,110.48]
[1754666019323,3.12,175.21,175.2,110.48]
[1754666019923,8.8265,175.21,175.2,110.48]
[1754666020128,15.05137195,175.21,175.2,110.48]
[1754666020328,15.05137195,175.21,175.18,9.98009171]
[1754666020526,8.8269,175.2,175.19,110.48]
[1754666020823,3.12,175.2,175.19,110.48]
[1754666021032,4.67701715,175.2,175.19,110.48]
[1754666021430,4.67701715,175.2,175.19,113.77]
[1754666021820,4.67701715,175.21,175.2,3.29]
[1754666022132,4.67701715,175.21,175.2,9.98009171]
[1754666022520,4.67701715,175.22,175.2,9.98009171]
[1754666022733,4.67701715,175.22,175.21,3.29]
[1754666023334,4.67701715,175.23,175.21,3.29]
[1754666023529,4.67701715,175.22,175.21,3.29]
[1754666023730,4.67701715,175.22,175.21,113.75]
[1754666024032,4.67701715,175.23,175.22,3.29]
[1754666024233,6.22487195,175.26,175.23,3.29]
[1754666024527,6.22487195,175.29,175.25,6.69009171]
[1754666024729,6.22487195,175.29,175.28,3.29]
[1754666024930,9.34487195,175.29,175.28,110.46]
[1754666025131,8.8238,175.29,175.28,110.46]
[1754666025333,3.12,175.29,175.28,110.46]
[1754666025727,9.35073815,175.29,175.28,110.46]
[1754666026129,15.05453815,175.29,175.28,110.46]
[1754666026636,8.8238,175.29,175.28,110.46]
[1754666026839,8.8242,175.28,175.27,0.00154439]
[1754666027429,18.20781491,175.28,175.27,0.00154439]
[1754666027637,8.8255,175.24,175.23,110.44]
[1754666027836,3.12,175.23,175.21,110.44]
[1754666028030,9.34352865,175.26,175.21,117.13009171]
[1754666028235,3.12,175.26,175.21,117.13009171]
[1754666028538,9.34352865,175.28,175.25,3.29]
[1754666028845,2.93507496,175.27,175.26,3.29]
[1754666029136,6.05507496,175.27,175.25,110.44]
[1754666029329,6.05507496,175.27,175.25,113.73]
[1754666029530,3.12,175.26,175.25,110.44]
[1754666029729,6.05507496,175.26,175.25,110.44]
[1754666029928,11.75987496,175.26,175.25,110.44]
[1754666030536,8.8255,175.24,175.22,113.71]
[1754666030736,2.93507496,175.25,175.23,3.29]
[1754666030939,3.12,175.25,175.23,3.29]
[1754666031139,11.76047496,175.25,175.23,3.29]
[1754666032437,11.76047496,175.25,175.24,3.29]
[1754666032936,8.8254,175.25,175.24,3.29]
[1754666033144,11.76047496,175.25,175.24,3.29]
[1754666033439,5.7049,175.26,175.25,3.29]
[1754666033637,8.64078742,175.26,175.25,3.29]
[1754666033941,8.64048742,175.27,175.26,3.29]
[1754666034146,11.76048742,175.27,175.26,3.29]
[1754666034336,2.93588742,175.27,175.25,3.29]
[1754666034539,6.05588742,175.26,175.25,3.29]
[1754666034739,6.05588742,175.27,175.25,3.29]
[1754666034945,2.93588742,175.26,175.25,3.29]
[1754666035339,2.93588742,175.27,175.26,3.29]
[1754666035543,2.97858142,175.28,175.27,3.29]
[1754666035736,2.93588742,175.29,175.27,6.69009171]
[1754666035940,6.22352865,175.34,175.28,6.69009171]
[1754666036147,11.92552865,175.35,175.31,6.69009171]
[1754666036446,11.92552865,175.35,175.34,3.29]
[1754666036749,15.04552865,175.35,175.33,6.69009171]
[1754666036940,5.7022,175.34,175.33,6.69009171]
[1754666037245,8.8222,175.34,175.33,6.69009171]
[1754666037440,3.12,175.34,175.33,6.69009171]
[1754666037647,11.92552865,175.35,175.33,6.69009171]
[1754666037950,6.22352865,175.35,175.33,6.69009171]
[1754666038145,3.12,175.35,175.33,6.69009171]
[1754666038346,6.22352865,175.36,175.33,6.69009171]
[1754666038547,3.12,175.36,175.35,6.69009171]
[1754666038748,3.12,175.36,175.35,117.09009171]
[1754666038947,9.34352865,175.36,175.35,110.4]
[1754666039247,3.12,175.36,175.35,110.4]
[1754666039444,8.8216,175.36,175.35,110.4]
[1754666039644,15.04512865,175.36,175.35,110.4]
[1754666039843,8.8216,175.36,175.35,110.4]
[1754666040238,15.04512865,175.36,175.35,110.4]
[1754666040450,8.8226,175.33,175.32,110.41636293]
[1754666040646,3.12,175.33,175.32,110.41636293]
[1754666040844,3.12,175.33,175.32,110.38]
[1754666041545,5.7019,175.35,175.32,110.38]
[1754666041755,3.12,175.36,175.33,9.98009171]
[1754666042045,3.12,175.34,175.33,6.69009171]
[1754666042244,3.12,175.35,175.32,110.38]
[1754666042546,3.12,175.34,175.32,110.38]
[1754666042847,3.12,175.34,175.32,113.67]
[1754666043647,3.12,175.33,175.32,110.38]
[1754666043848,3.12,175.33,175.31,5.938e-05]
[1754666044044,3.12,175.27,175.25,110.34]
[1754666044245,3.12,175.3,175.26,3.29]
[1754666044448,3.12,175.27,175.25,117.03009171]
[1754666044847,6.21199456,175.31,175.25,117.03009171]
[1754666045053,3.12,175.29,175.26,3.29]
[1754666045256,5.7045,175.27,175.25,117.03009171]
[1754666045452,3.12,175.26,175.25,117.03009171]
[1754666045651,8.8248,175.26,175.25,117.03009171]
[1754666045852,3.16360631,175.28,175.25,117.03009171]
[1754666046053,3.27,175.27,175.25,120.32009171]
[1754666046253,3.27,175.27,175.25,117.03009171]
[1754666046449,0.04360631,175.28,175.25,117.03009171]
[1754666046663,0.04360631,175.28,175.26,3.04]
[1754666046957,0.04360631,175.28,175.25,117.03009171]
[1754666047149,0.04360631,175.28,175.23,6.69009171]
[1754666047349,0.04360631,175.28,175.23,110.34]
[1754666047555,0.04360631,175.28,175.25,0.03719378]
[1754666047955,8.9748,175.26,175.25,0.03719378]
[1754666048157,11.83350234,175.26,175.25,0.03719378]
[1754666049355,2.85870234,175.26,175.25,3.07719378]
[1754666049652,2.85870234,175.27,175.25,0.03719378]
[1754666049858,2.90230865,175.28,175.26,3.04]
[1754666050060,2.90230865,175.28,175.27,3.04]
[1754666050262,0.04360631,175.28,175.27,3.04]
[1754666050456,2.90552062,175.28,175.27,113.38]
[1754666050952,0.04360631,175.28,175.27,120.07009171]
[1754666052257,3.31360631,175.28,175.27,117.03009171]
[1754666052461,3.31360631,175.28,175.27,110.34]
[1754666052657,0.04360631,175.28,175.27,120.07009171]
[1754666052858,134.20737231,175.39,175.27,120.07009171]
[1754666052859,2.86166397,175.31,175.28,3.04]
[1754666053060,2.86166397,175.33,175.31,3.04]
[1754666053262,2.86166397,175.33,175.32,113.38]
[1754666053460,2.86220502,175.34,175.33,3.04]
[1754666053659,6.13220502,175.36,175.33,3.04]
[1754666053864,2.86220502,175.35,175.33,3.04]
[1754666054058,2.86220502,175.35,175.34,3.04]
[1754666054256,2.86220502,175.36,175.34,9.73009171]
[1754666054564,2.86220502,175.36,175.35,110.32]
[1754666054756,8.56380502,175.36,175.35,110.32]
[1754666054957,11.83380502,175.36,175.35,110.32]
[1754666055361,6.13220502,175.36,175.35,110.32]
[1754666055563,2.86220502,175.36,175.35,113.36]
[1754666055957,9.07419958,175.38,175.35,110.32]
[1754666056162,2.86220502,175.37,175.35,110.32]
[1754666056356,6.21199456,175.38,175.36,6.69009171]
[1754666056660,110.32,175.53,175.38,3.04]
[1754666056661,6.21199456,175.41,175.38,3.04]
[1754666056858,9.38361491,175.44,175.34,6.69009171]
[1754666056859,6.21199456,175.42,175.4,3.04]
[1754666057064,6.21199456,175.42,175.41,116.99009171]
[1754666057261,6.21199456,175.43,175.41,116.99009171]
[1754666057667,9.48199456,175.43,175.41,120.03009171]
[1754666058057,5.6996,175.42,175.41,120.03009171]
[1754666058260,5.6996,175.42,175.41,116.99009171]
[1754666058559,5.6995,175.43,175.41,116.99009171]
[1754666058756,3.27,175.43,175.41,120.03009171]
[1754666058955,6.21199456,175.47,175.42,3.04]
[1754666059159,6.21199456,175.47,175.44,3.04]
[1754666059356,3.27,175.47,175.45,9.73009171]
[1754666059553,5.6987,175.45,175.44,110.28]
[1754666059754,5.6987,175.45,175.44,110.31902193]
[1754666059755,8.9687,175.45,175.44,110.31902193]
[1754666060058,3.27,175.47,175.44,117.00911364]
[1754666060257,3.27,175.47,175.44,120.04911364]
[1754666060466,9.48199456,175.48,175.44,117.00911364]
[1754666060655,8.9687,175.45,175.44,110.31902193]
[1754666060862,3.27,175.45,175.42,6.69009171]
[1754666061066,3.27,175.45,175.42,116.95009171]
[1754666061262,5.6993,175.43,175.42,116.95009171]
[1754666061462,8.9693,175.43,175.42,116.95009171]
[1754666061667,3.27,175.46,175.42,116.95009171]
[1754666061855,3.27,175.46,175.44,6.69009171]
[1754666062168,3.27,175.47,175.45,113.28]
[1754666062361,5.73483217,175.46,175.45,113.28]
[1754666062555,0.03653217,175.46,175.45,113.28]
[1754666063259,3.27,175.5,175.45,110.24]
[1754666063460,3.27,175.5,175.48,6.69009171]
[1754666063660,3.27,175.5,175.48,116.93009171]
[1754666063860,5.6974,175.49,175.48,110.24]
[1754666064072,8.9674,175.49,175.48,110.24]
[1754666064769,6.21199456,175.52,175.46,110.22]
[1754666064770,12.90208627,175.52,175.46,110.22]
[1754666064962,6.21199456,175.5,175.47,0.03824892]
[1754666065158,3.27,175.49,175.47,0.03824892]
[1754666065665,8.9677,175.48,175.47,0.03824892]
[1754666066462,6.21199456,175.5,175.36,3.04]
[1754666066463,3.27,175.45,175.36,3.04]
[1754666066667,3.27,175.45,175.38,6.69009171]
[1754666067060,5.7002,175.41,175.39,3.04]
[1754666067261,6.20386615,175.47,175.39,3.04]
[1754666067460,5.7004,175.4,175.38,9.73009171]
[1754666067665,9.5101125,175.45,175.38,116.89009171]
[1754666067857,3.27,175.44,175.38,110.2]
[1754666068168,8.9706,175.39,175.38,110.2]
[1754666068668,11.84555879,175.39,175.38,110.2]
[1754666068868,8.57555879,175.39,175.38,113.24]
[1754666069064,2.87495879,175.41,175.38,116.89009171]
[1754666069270,3.31085857,175.43,175.4,3.04]
[1754666069565,0.04085857,175.43,175.38,116.93140984]
[1754666069768,8.9703,175.4,175.38,119.97140984]
[1754666070070,0.04085857,175.43,175.38,110.24131813]
[1754666070071,6.14512178,175.39,175.38,110.24131813]
[1754666070366,8.9706,175.39,175.38,110.24131813]
[1754666070864,11.84572178,175.39,175.38,110.24131813]
[1754666071068,11.84572178,175.39,175.38,0.04131813]
[1754666072972,8.57572178,175.39,175.38,3.08131813]
[1754666073171,5.7006,175.39,175.38,3.08131813]
[1754666073366,2.87512178,175.4,175.38,3.08131813]
[1754666073367,8.57552178,175.4,175.39,3.04]
[1754666073574,2.87512178,175.4,175.39,119.91009171]
[1754666073768,3.31085857,175.43,175.4,3.04]
[1754666073970,0.04085857,175.43,175.39,116.87009171]
[1754666074273,0.04085857,175.43,175.42,3.04]
[1754666075273,3.31085857,175.43,175.41,6.69009171]
[1754666075471,3.27,175.42,175.41,6.69009171]
[1754666075767,5.6996,175.42,175.41,9.73009171]
[1754666076169,0.04085857,175.43,175.41,9.73009171]
[1754666076360,5.74035857,175.43,175.41,9.73009171]
[1754666076565,5.74035857,175.43,175.42,3.08]
[1754666076870,0.04085857,175.43,175.42,3.08]
[1754666077268,5.6979,175.48,175.42,8.7796]
[1754666077466,3.13,175.48,175.45,9.77009171]
[1754666077669,3.13,175.48,175.46,3.08]
[1754666077968,2.87512178,175.5,175.45,6.69009171]
[1754666078173,2.87512178,175.51,175.47,6.69009171]
[1754666078372,3.13,175.48,175.47,6.69009171]
[1754666078770,8.8277,175.48,175.47,6.73344784]
[1754666079170,8.8277,175.48,175.47,0.04335613]
[1754666079972,5.699,175.44,175.43,110.16]
[1754666080175,8.829,175.44,175.43,110.16]
[1754666080365,8.829,175.44,175.38,3.08]
[1754666080366,3.13,175.44,175.38,3.08]
[1754666080564,3.13,175.44,175.38,110.14]
[1754666081270,0.04245785,175.43,175.38,110.14]
[1754666081475,3.13,175.41,175.38,113.22]
[1754666081677,3.13,175.41,175.39,3.08]
[1754666081874,5.7006,175.39,175.38,113.22]
[1754666082078,3.13,175.42,175.39,3.08]
[1754666082374,5.7003,175.4,175.39,3.08]
[1754666082582,3.13,175.42,175.38,110.14]
[1754666082980,8.8306,175.39,175.38,110.14]
[1754666083171,3.13,175.38,175.33,110.14]
[1754666083575,3.13,175.38,175.33,113.22]
[1754666083879,0.03928203,175.37,175.33,110.14]
[1754666084187,3.13,175.36,175.33,113.22]
[1754666084476,3.13,175.36,175.34,3.08]
[1754666084885,5.7019,175.35,175.34,3.08]
[1754666085980,5.7017,175.36,175.34,3.08]
[1754666086194,0.03928203,175.37,175.35,3.08]
[1754666086494,5.74058203,175.37,175.36,3.08]
[1754666086780,3.13,175.36,175.28,386.5]
[1754666086979,3.13,175.36,175.29,6.69009171]
[1754666087173,5.7027,175.33,175.29,116.83009171]
[1754666087373,3.13,175.33,175.3,3.08]
[1754666087583,5.7029,175.32,175.3,3.08]
[1754666087783,6.01029008,175.37,175.31,9.77009171]
[1754666087978,0.03740128,175.33,175.32,3.08]
[1754666088887,3.16740128,175.33,175.31,6.69009171]
[1754666089183,0.03740128,175.33,175.31,9.77009171]
[1754666089380,0.03740128,175.33,175.32,3.08]
[1754666089880,5.73990128,175.33,175.32,3.08]
[1754666090782,0.03740128,175.33,175.32,3.08]
[1754666091985,2.88029008,175.38,175.32,3.08]
[1754666092188,3.13,175.39,175.35,6.69009171]
[1754666092386,8.8314,175.37,175.34,3.08]
[1754666092683,3.13,175.37,175.35,3.08]
[1754666092887,2.88029008,175.38,175.34,6.69009171]
[1754666092888,8.58129008,175.38,175.34,6.69009171]
[1754666093085,2.88029008,175.39,175.36,6.69009171]
[1754666093392,7.79061974,175.4,175.38,3.08]
[1754666093596,3.13,175.4,175.38,3.08]
[1754666093791,6.01029008,175.4,175.38,3.08]
[1754666093991,3.13,175.4,175.38,3.08]
[1754666094380,3.13,175.4,175.37,110.14]
[1754666094381,4.66061974,175.41,175.37,110.14]
[1754666094677,3.13,175.41,175.39,3.08]
[1754666095081,4.66061974,175.42,175.38,6.69009171]
[1754666095280,7.54090982,175.42,175.37,116.87169025]
[1754666095492,3.13,175.4,175.37,119.95169025]
[1754666095789,3.13,175.4,175.38,9.77009171]
[1754666096394,3.13,175.4,175.38,3.08]
[1754666096691,6.01029008,175.4,175.38,3.08]
[1754666097290,6.01651505,175.4,175.38,3.08]
[1754666097490,6.01651505,175.4,175.38,6.69009171]
[1754666097685,2.88651505,175.4,175.37,110.18159854]
[1754666097880,3.13,175.38,175.37,110.18159854]
[1754666098187,6.01651505,175.38,175.37,110.18159854]
[1754666100193,2.88651505,175.38,175.37,113.26159854]
[1754666100393,2.88903175,175.4,175.38,3.08]
[1754666100588,2.88903175,175.4,175.37,116.87169025]
[1754666100589,3.13,175.4,175.37,0.04159854]
[1754666100792,7.79061974,175.39,175.38,110.1]
[1754666101190,3.13,175.39,175.38,110.1]
[1754666101392,7.79061974,175.39,175.38,110.1]
[1754666101993,4.66061974,175.39,175.38,113.18]
[1754666102189,7.79061974,175.4,175.38,110.1]
[1754666102393,7.79061974,175.39,175.38,110.1]
[1754666102593,4.66061974,175.4,175.38,113.18]
[1754666102796,4.66061974,175.4,175.39,9.77009171]
[1754666103399,4.66061974,175.41,175.4,3.08]
[1754666103592,4.66061974,175.41,175.4,113.18]
[1754666103795,4.66061974,175.41,175.4,110.1]
[1754666103990,8.8299,175.41,175.4,105.82293249]
[1754666104203,3.13,175.4,175.36,110.1]
[1754666104391,3.13,175.37,175.36,110.1]
[1754666104596,15.06097797,175.37,175.36,107.66786957]
[1754666104797,15.06097797,175.37,175.36,0.04142744]
[1754666105394,3.13,175.36,175.33,110.1]
[1754666105598,9.35977797,175.36,175.32,110.1]
[1754666105798,4.6691456,175.34,175.32,113.18]
[1754666106002,7.7991456,175.35,175.32,113.18]
[1754666106295,7.6591456,175.33,175.32,110.1]
[1754666106493,2.99,175.33,175.32,110.1]
[1754666106999,7.6591456,175.33,175.32,110.1]
[1754666107801,4.6691456,175.34,175.32,120.01009171]
[1754666108002,7.6591456,175.34,175.32,110.1]
[1754666108593,7.6591456,175.34,175.32,116.79009171]
[1754666108594,2.99,175.33,175.32,116.79009171]
[1754666108898,3.94170463,175.33,175.32,120.01009171]
[1754666110196,0.03834781,175.35,175.33,3.22]
[1754666110505,0.03834781,175.35,175.34,9.91009171]
[1754666110997,0.03834781,175.35,175.34,15.61229171]
[1754666111497,4.6691456,175.38,175.35,3.22]
[1754666111702,4.6691456,175.38,175.37,3.22]
[1754666112208,2.99,175.39,175.37,3.22]
[1754666112400,2.98779995,175.38,175.37,3.22]
[1754666113501,2.98779995,175.38,175.37,9.91009171]
[1754666113903,2.98779995,175.38,175.37,6.69009171]
[1754666114105,7.65694555,175.38,175.36,110.116392]
[1754666114296,5.97779995,175.37,175.36,0.036392]
[1754666114492,5.97779995,175.37,175.36,110.116392]
[1754666114704,10.64694555,175.37,175.36,110.116392]
[1754666114906,5.97779995,175.37,175.36,110.116392]
[1754666115299,10.64694555,175.37,175.36,110.116392]
[1754666116408,5.97779995,175.37,175.36,110.116392]
[1754666116707,5.97779995,175.37,175.36,113.336392]
[1754666116708,2.99000934,175.37,175.36,113.336392]
[1754666118007,5.98000934,175.37,175.36,110.116392]
[1754666119010,5.98000934,175.37,175.36,0.036392]
[1754666119196,5.98000934,175.37,175.36,110.096392]
[1754666119601,11.68120934,175.37,175.36,110.096392]
[1754666120102,7.66784805,175.37,175.36,110.096392]
[1754666121006,7.66784805,175.37,175.36,113.316392]
[1754666121207,2.99000934,175.37,175.36,113.316392]
[1754666121396,2.99,175.42,175.37,5.7009]
[1754666121397,4.67783871,175.39,175.37,5.7009]
[1754666121601,4.67783871,175.39,175.38,113.26]
[1754666122001,4.67783871,175.39,175.38,118.9609]
[1754666122201,7.66783871,175.39,175.38,110.04]
[1754666122402,2.99,175.39,175.38,110.04]
[1754666123406,2.99,175.39,175.36,0.036392]
[1754666123706,14.93388706,175.37,175.36,0.036392]
[1754666125004,18.99822145,175.37,175.36,0.036392]
[1754666125305,12.75553439,175.37,175.36,0.00085439]
[1754666127106,9.76553439,175.37,175.36,0.00085439]
[1754666127401,12.75553439,175.37,175.36,0.00085439]
[1754666127803,22.1391493,175.37,175.36,0.00085439]
[1754666130308,12.75553439,175.37,175.36,0.00085439]
[1754666130507,2.99,175.33,175.27,9.91009171]
[1754666130719,2.99,175.29,175.27,110.02]
[1754666130907,4.06433439,175.28,175.27,118.9445]
[1754666131108,4.68352884,175.32,175.27,116.71009171]
[1754666131308,4.68352884,175.33,175.31,3.22]
[1754666131513,4.68352884,175.33,175.31,110.02]
[1754666131514,9.23470512,175.33,175.31,110.02]
[1754666131714,6.24470512,175.33,175.31,110.02]
[1754666131913,9.23470512,175.33,175.31,113.24]
[1754666132411,2.99,175.33,175.31,113.24]
[1754666133012,6.28580576,175.34,175.31,110.02]
[1754666133013,4.68343267,175.32,175.31,110.02]
[1754666133218,4.68343267,175.32,175.31,116.71009171]
[1754666133418,7.60244017,175.32,175.31,125.63299171]
[1754666133616,2.9190075,175.32,175.31,125.63299171]
[1754666133818,1.73453331,175.36,175.32,2.99]
[1754666134123,6.24470512,175.41,175.34,13.38018342]
[1754666134330,6.24470512,175.41,175.4,6.69009171]
[1754666134623,2.99,175.41,175.4,110.0]
[1754666135122,18.05695768,175.41,175.4,110.0]
[1754666135618,15.58209038,175.5,175.36,110.0]
[1754666135619,2.99,175.39,175.36,110.0]
[1754666135826,19.15576402,175.45,175.36,110.0]